bitfinex/quotes_ETHUSD_20251107
["timestamp","ask_amount","ask_price","bid_price","bid_amount"]
[1762500234181,2.9739963,3362.5,3362.4,0.3854]
[1762500234348,4.24668345,3362.6,3362.4,0.3854]
[1762500234349,2.97390508,3362.6,3362.4,0.3854]
[1762500234631,2.97390508,3362.6,3362.5,0.7708]
[1762500240768,3.37936467,3362.7,3362.5,0.7708]
[1762500240963,0.148,3362.5,3362.1,0.1079]
[1762500241142,2.97396764,3362.6,3362.1,0.41613809]
[1762500241338,2.9739815,3362.5,3362.1,0.41613809]
[1762500241678,2.97415459,3362.3,3362.2,0.3854]
[1762500241826,2.97400735,3362.5,3362.2,0.3854]
[1762500242031,0.405504,3362.5,3362.2,0.3854]
[1762500242244,3.37948169,3362.5,3362.4,0.3854]
[1762500242685,3.37948169,3362.5,3362.4,0.7708]
[1762500242829,0.405504,3362.5,3362.4,0.7708]
[1762500244767,3.37948169,3362.5,3362.4,0.7708]
[1762500245339,0.405504,3362.5,3362.4,0.7708]
[1762500245556,3.37948169,3362.5,3362.4,0.7708]
[1762500247587,3.37948169,3362.5,3362.4,0.3854]
[1762500247797,0.405504,3362.2,3362.1,0.1079]
[1762500248149,0.405504,3362.2,3362.1,0.4933]
[1762500248683,0.405504,3362.2,3362.1,0.8787]
[1762500249593,3.37974705,3362.2,3362.1,0.8787]
[1762500249771,3.37974705,3362.2,3362.1,0.4933]
[1762500250076,3.37974705,3362.2,3362.1,0.006]
[1762500250981,4.72341518,3362.2,3362.1,0.006]
[1762500251180,5.98312718,3362.2,3362.1,0.006]
[1762500251394,5.56235905,3362.2,3361.7,0.001]
[1762500251558,10.78887349,3361.8,3361.7,0.001]
[1762500251884,11.20964162,3361.8,3361.7,0.001]
[1762500252089,11.67884162,3361.8,3361.7,0.001]
[1762500253188,11.67884162,3361.8,3361.4,0.001]
[1762500253189,2.97486241,3361.5,3361.4,0.001]
[1762500253376,5.14377841,3361.5,3361.4,0.001]
[1762500253576,3.38063193,3361.2,3361.1,0.005]
[1762500253779,9.47549248,3361.2,3361.1,0.005]
[1762500253987,10.39821061,3361.2,3361.1,0.005]
[1762500254195,10.96531061,3361.2,3361.1,0.005]
[1762500254388,10.96531061,3361.2,3361.1,1e-08]
[1762500254576,3.38080896,3361.0,3360.1,0.005]
[1762500254777,3.38151733,3360.2,3360.1,0.005]
[1762500255202,3.38151733,3360.2,3360.1,0.3904]
[1762500255776,3.83521733,3360.2,3360.1,0.005]
[1762500256091,11.20528988,3360.2,3360.1,0.005]
[1762500256292,11.62889093,3360.2,3360.1,0.005]
[1762500256496,14.51305604,3360.2,3360.1,0.005]
[1762500256897,15.00035604,3360.2,3360.1,0.005]
[1762500257213,14.57675499,3360.2,3360.1,0.005]
[1762500258191,3.38240326,3359.2,3358.0,0.1019]
[1762500258378,4.64211526,3359.2,3358.0,0.1019]
[1762500258584,4.64211526,3359.2,3358.2,2.97776072]
[1762500258783,1.665216,3359.2,3358.3,2.97768272]
[1762500259098,4.64211526,3359.2,3358.3,2.97767278]
[1762500259299,1.665216,3359.2,3358.3,2.97766504]
[1762500259511,4.64211526,3359.2,3358.1,0.005]
[1762500259698,4.64211526,3359.2,3358.2,2.97776506]
[1762500259891,4.64211526,3359.2,3358.3,2.97768247]
[1762500260317,1.665216,3359.2,3358.5,2.97748161]
[1762500260536,1.665216,3359.2,3358.1,0.005]
[1762500260537,0.405504,3359.2,3358.1,0.005]
[1762500260739,0.405504,3359.2,3358.5,2.97744984]
[1762500260936,0.405504,3359.2,3358.3,2.97761607]
[1762500260937,0.405504,3359.2,3358.6,2.97741395]
[1762500261106,0.405504,3359.2,3358.7,2.97731536]
[1762500261313,0.405504,3359.2,3358.5,2.97751526]
[1762500261500,3.38240326,3359.2,3358.5,2.97751526]
[1762500261700,3.38240326,3359.2,3358.5,2.97748824]
[1762500262099,3.38240326,3359.2,3358.6,2.97742977]
[1762500262443,3.38240326,3359.2,3358.5,2.97749313]
[1762500262941,3.38240326,3359.2,3358.2,0.1488]
[1762500262942,3.38240326,3359.2,3358.4,2.97758075]
[1762500263312,3.38240326,3359.2,3358.2,0.1488]
[1762500263526,3.38240326,3359.2,3358.1,0.005]
[1762500264198,4.64211526,3359.2,3358.1,0.005]
[1762500264998,5.06571631,3359.2,3358.1,0.005]
[1762500266044,5.49667297,3359.2,3358.1,0.005]
[1762500267027,5.06571631,3359.2,3358.1,0.005]
[1762500268318,5.49667297,3359.2,3358.1,0.005]
[1762500268514,5.53708597,3359.2,3358.1,0.005]
[1762500268848,5.96068702,3359.2,3358.1,0.005]
[1762500269353,6.44164368,3359.2,3358.1,0.005]
[1762500269500,6.01068702,3359.2,3358.1,0.005]
[1762500269826,5.58708597,3359.2,3358.1,0.005]
[1762500270028,4.64300171,3358.2,3358.1,0.005]
[1762500270410,5.06660276,3358.2,3358.1,0.005]
[1762500270812,4.64300171,3358.2,3358.1,0.005]
[1762500271010,5.07395837,3358.2,3358.1,0.005]
[1762500271215,5.47150639,3358.2,3358.1,0.005]
[1762500271520,5.04054973,3358.2,3358.1,0.005]
[1762500271745,5.47150639,3358.2,3358.1,0.005]
[1762500272299,4.6438887,3357.2,3357.1,0.005]
[1762500273947,1.665216,3357.2,3357.1,0.005]
[1762500274148,4.6438887,3357.2,3357.1,0.005]
[1762500274945,5.04143672,3357.2,3357.1,0.005]
[1762500275148,4.6438887,3357.2,3357.1,0.005]
[1762500278530,5.10659536,3357.2,3357.1,0.005]
[1762500279215,5.50397672,3357.2,3357.1,0.005]
[1762500279521,3.38506421,3356.2,3356.1,0.005]
[1762500279749,3.78244557,3356.2,3356.1,0.005]
[1762500280246,0.405504,3356.2,3356.1,0.005]
[1762500281174,4.64477621,3356.2,3356.1,0.005]
[1762500281375,1.665216,3356.2,3356.1,0.005]
[1762500281720,4.64477621,3356.2,3356.1,0.005]
[1762500281917,1.665216,3356.2,3356.1,0.005]
[1762500282123,0.405504,3356.2,3356.1,0.005]
[1762500282630,1.665216,3356.2,3356.1,0.005]
[1762500282829,4.64477621,3356.2,3356.1,0.005]
[1762500283349,1.665216,3356.2,3356.1,0.005]
[1762500284058,4.64477621,3356.2,3356.1,0.005]
[1762500284240,5.54028089,3356.2,3356.1,0.005]
[1762500284556,1.665216,3356.2,3356.1,0.005]
[1762500284737,4.64477621,3356.2,3356.1,0.005]
[1762500285342,5.07782462,3356.2,3356.1,0.005]
[1762500286626,5.42183541,3356.2,3356.1,0.005]
[1762500287228,5.42183541,3356.2,3355.1,0.005]
[1762500287229,0.405504,3355.2,3355.1,0.005]
[1762500287653,0.405504,3355.3,3355.1,0.005]
[1762500288661,0.405504,3355.5,3355.1,0.005]
[1762500288856,1.665216,3355.5,3355.1,0.005]
[1762500289156,0.405504,3355.3,3355.1,0.005]
[1762500289325,0.405504,3355.4,3355.1,0.005]
[1762500289952,1.665216,3355.4,3355.1,0.005]
[1762500290151,1.665216,3355.2,3355.1,0.005]
[1762500290460,1.665216,3355.4,3355.1,0.005]
[1762500290687,0.05,3355.6,3354.1,0.005]
[1762500290882,3.38619102,3355.0,3354.1,0.005]
[1762500291083,0.405504,3354.7,3354.1,0.30365995]
[1762500291271,0.405504,3354.3,3354.1,0.005]
[1762500291477,0.82793146,3354.3,3354.1,0.005]
[1762500291982,3.80920121,3354.3,3354.1,0.005]
[1762500293159,3.38677375,3354.3,3354.1,0.005]
[1762500293365,0.82793146,3354.2,3354.1,0.005]
[1762500294585,0.405504,3354.2,3354.1,0.005]
[1762500295113,1.41368013,3355.2,3354.1,2.98642571]
[1762500295114,1.259712,3355.1,3354.1,2.98642571]
[1762500295390,0.05,3355.6,3354.2,3.60792351]
[1762500295391,2.98018179,3355.5,3354.2,3.60792351]
[1762500295592,0.1488,3354.4,3354.2,0.59680164]
[1762500295798,0.1488,3354.4,3354.1,0.005]
[1762500296100,1.259712,3355.3,3354.1,0.005]
[1762500296257,0.1488,3354.3,3354.1,0.005]
[1762500296454,0.405504,3354.2,3354.1,0.005]
[1762500296682,0.1488,3354.3,3354.1,2.98640964]
[1762500296893,0.1488,3354.3,3354.2,0.59680107]
[1762500297388,0.554304,3354.3,3354.2,0.59680107]
[1762500298107,0.405504,3354.2,3354.1,2.98640423]
[1762500298314,0.405504,3354.2,3354.1,0.005]
[1762500298486,0.1488,3354.3,3354.1,0.005]
[1762500300774,0.405504,3354.2,3354.1,0.005]
[1762500301074,4.26913037,3354.2,3354.1,0.005]
[1762500301698,5.52884237,3354.2,3354.1,0.005]
[1762500301912,5.8740267,3354.2,3354.1,0.005]
[1762500303388,0.405504,3354.0,3353.1,0.005]
[1762500303587,3.38772993,3353.2,3353.1,0.005]
[1762500303787,4.3031028,3353.2,3353.1,0.005]
[1762500304336,1.32087687,3353.2,3353.1,0.005]
[1762500305188,4.3031028,3353.2,3353.1,0.005]
[1762500305619,4.3031028,3353.2,3352.1,0.005]
[1762500305620,0.405504,3352.6,3352.1,0.005]
[1762500305826,3.38829224,3352.6,3352.1,0.005]
[1762500306007,0.405504,3352.5,3352.1,0.005]
[1762500306346,0.405504,3352.6,3352.1,0.005]
[1762500306508,3.3882688,3352.6,3352.1,0.005]
[1762500307048,0.405504,3352.6,3352.1,0.005]
[1762500307246,1.665216,3352.3,3352.1,0.005]
[1762500307418,0.85632846,3352.2,3352.1,0.005]
[1762500307621,3.83944402,3352.2,3352.1,0.005]
[1762500307823,0.405504,3352.6,3352.1,0.005]
[1762500308161,0.405504,3352.2,3352.1,0.005]
[1762500308460,0.405504,3352.4,3352.1,0.005]
[1762500309518,0.405504,3352.5,3352.1,0.005]
[1762500309912,0.405504,3352.9,3352.1,0.005]
[1762500310108,1.259712,3353.1,3352.1,0.005]
[1762500310304,0.405504,3352.5,3352.1,0.005]
[1762500310735,0.405504,3352.9,3352.1,0.005]
[1762500310940,0.405504,3353.1,3352.1,0.005]
[1762500311108,1.665216,3352.7,3352.1,0.005]
[1762500311325,0.405504,3352.7,3352.1,0.005]
[1762500311650,0.405504,3352.6,3352.1,0.005]
[1762500311943,1.665216,3352.7,3352.1,0.005]
[1762500312509,3.38803433,3352.9,3352.1,0.005]
[1762500312957,1.665216,3352.7,3352.1,0.005]
[1762500313172,0.405504,3352.3,3352.1,0.005]
[1762500313531,1.259712,3352.6,3352.1,0.005]
[1762500313836,1.665216,3352.5,3352.1,0.005]
[1762500314280,0.405504,3352.8,3352.1,0.005]
[1762500314755,0.002,3353.1,3352.1,0.005]
[1762500314931,0.1488,3352.2,3352.1,0.005]
[1762500315447,0.554304,3352.2,3352.1,3.28704266]
[1762500315646,0.1488,3352.2,3352.1,3.28704266]
[1762500315864,0.1488,3352.4,3352.3,2.98302657]
[1762500316226,0.405504,3352.3,3352.1,0.30383811]
[1762500316432,0.405504,3352.3,3352.1,2.98818122]
[1762500316632,0.1488,3352.4,3352.2,2.98311556]
[1762500316864,0.1488,3352.4,3352.3,2.98302657]
[1762500317055,0.554304,3352.4,3352.3,2.98302657]
[1762500317549,0.405504,3352.3,3352.1,0.005]
[1762500317948,0.1488,3352.4,3352.1,0.005]
[1762500318157,0.1488,3352.4,3352.3,3.11152657]
[1762500318359,0.1488,3352.4,3352.3,3.7600385]
[1762500318562,0.554304,3352.4,3352.3,3.7600385]
[1762500318761,0.554304,3352.4,3352.1,0.005]
[1762500318762,0.405504,3352.3,3352.1,0.005]
[1762500319142,0.554304,3352.2,3352.1,0.005]
[1762500319746,1.045304,3352.2,3352.1,0.005]
[1762500320735,4.02841956,3352.2,3352.1,0.005]
[1762500321488,6.20350443,3352.2,3352.1,0.005]
[1762500322134,6.20350443,3352.2,3351.7,0.001]
[1762500322135,3.43897556,3351.8,3351.7,0.001]
[1762500322442,5.82271202,3351.8,3351.7,0.001]
[1762500323270,5.32188756,3351.8,3351.7,0.001]
[1762500323584,6.23726043,3351.8,3351.7,0.001]
[1762500323737,5.32188756,3351.8,3351.7,0.001]
[1762500324237,6.23726043,3351.8,3351.7,0.001]
[1762500324451,6.58402717,3351.8,3351.7,0.001]
[1762500325648,3.38924262,3351.5,3351.4,0.001]
[1762500325845,3.84006708,3351.5,3351.4,0.001]
[1762500326051,4.33106708,3351.5,3351.4,0.001]
[1762500327262,4.33090041,3351.5,3351.4,0.001]
[1762500327566,3.88024262,3351.5,3351.4,0.001]
[1762500327735,4.33090041,3351.5,3351.4,0.001]
[1762500327935,11.18979413,3351.5,3351.4,0.001]
[1762500328173,3.43950972,3351.2,3351.1,0.005]
[1762500328497,5.96663633,3351.2,3351.1,0.005]
[1762500328808,6.45763633,3351.2,3351.1,0.005]
[1762500329223,6.45763633,3351.2,3351.1,1e-08]
[1762500329525,5.19022172,3351.2,3351.1,1e-08]
[1762500329682,6.10413201,3351.2,3351.1,1e-08]
[1762500330079,6.10413201,3351.2,3351.1,0.00100001]
[1762500330278,5.65477013,3351.2,3351.1,0.00100001]
[1762500331528,6.07571809,3351.2,3350.7,0.001]
[1762500331687,10.12875125,3350.8,3350.7,0.001]
[1762500331902,11.39290762,3350.8,3350.7,0.001]
[1762500332090,11.04069921,3350.8,3350.7,0.001]
[1762500332293,11.50524762,3350.8,3350.7,0.001]
[1762500332589,11.85745603,3350.8,3350.7,0.001]
[1762500333023,3.39013315,3350.5,3350.4,0.001]
[1762500333217,9.94708573,3350.2,3350.1,1e-08]
[1762500333714,11.3235821,3350.2,3350.1,1e-08]
[1762500333921,11.70029051,3350.2,3350.1,1e-08]
[1762500334215,3.44129165,3349.2,3348.3,0.3854]
[1762500334442,1.665216,3349.2,3348.6,0.3854]
[1762500334580,0.405504,3349.2,3349.1,0.5189]
[1762500335123,0.405504,3349.2,3349.1,0.9043]
[1762500337142,0.405504,3349.2,3349.1,0.5189]
[1762500337445,0.405504,3349.2,3349.1,0.9043]
[1762500337805,2.98517715,3349.9,3349.1,1.29333692]
[1762500338006,2.9854397,3349.6,3349.1,0.9043]
[1762500338215,0.405504,3349.5,3349.1,0.9043]
[1762500338421,0.405504,3349.5,3349.1,0.5189]
[1762500338634,0.405504,3349.6,3349.4,0.3854]
[1762500338821,3.39085665,3349.7,3349.5,0.3854]
[1762500339239,3.3907687,3349.8,3349.6,0.3854]
[1762500339412,0.405504,3349.6,3349.1,0.1335]
[1762500339615,3.3909442,3349.6,3349.2,0.3854]
[1762500339931,3.3909442,3349.6,3349.5,0.3854]
[1762500340248,0.405504,3349.7,3349.5,0.3854]
[1762500340452,0.405504,3349.7,3349.4,0.3854]
[1762500340650,0.405504,3349.8,3349.6,0.3854]
[1762500340851,3.39080786,3349.8,3349.1,0.1335]
[1762500341018,0.405504,3349.6,3349.2,0.3854]
[1762500341338,0.05,3350.9,3349.7,0.3854]
[1762500341542,0.05,3350.9,3349.8,0.3854]
[1762500341543,2.98498452,3350.2,3349.8,0.3854]
[1762500341854,1.259712,3350.0,3349.8,0.3854]
[1762500342040,0.405504,3349.9,3349.2,0.3854]
[1762500342239,0.405504,3350.0,3349.9,0.3854]
[1762500342546,0.405504,3350.1,3349.9,0.3854]
[1762500342757,1.665216,3350.1,3350.0,0.3854]
[1762500343265,1.259712,3350.1,3350.0,0.7708]
[1762500343769,3.16663745,3350.8,3350.0,0.7708]
[1762500343770,4.24428827,3350.6,3350.0,0.7708]
[1762500343982,2.98437403,3350.8,3350.1,0.5139]
[1762500344190,0.405504,3350.8,3350.1,0.1285]
[1762500344373,0.405504,3350.3,3350.1,0.1285]
[1762500344675,1.665216,3350.5,3350.1,0.1285]
[1762500344967,0.405504,3350.3,3350.2,0.3854]
[1762500345194,0.4684,3350.2,3349.1,0.1335]
[1762500345350,1.665216,3350.1,3349.1,0.1335]
[1762500345547,0.405504,3349.4,3349.1,0.1335]
[1762500345864,3.39129165,3349.2,3349.1,0.1335]
[1762500346071,3.39129165,3349.2,3349.1,0.005]
[1762500346651,3.85584006,3349.2,3349.1,0.005]
[1762500346856,6.47310002,3349.2,3349.1,0.005]
[1762500347267,5.58760365,3349.2,3349.1,0.005]
[1762500347431,6.00855161,3349.2,3349.1,0.005]
[1762500348168,6.00855161,3349.2,3349.1,0.006]
[1762500349278,6.47310002,3349.2,3349.1,0.006]
[1762500349438,6.00855161,3349.2,3349.1,0.006]
[1762500350035,5.58760365,3349.2,3349.1,0.006]
[1762500350230,5.58760365,3349.2,3348.7,0.001]
[1762500350231,3.44164829,3348.8,3348.7,0.001]
[1762500350469,10.85577336,3348.8,3348.7,0.001]
[1762500350776,11.32397336,3348.8,3348.7,0.001]
[1762500351135,11.74492132,3348.8,3348.7,0.001]
[1762500351553,11.32397336,3348.8,3348.7,0.001]
[1762500351754,3.3921834,3348.2,3348.1,0.005]
[1762500351955,5.1202954,3348.2,3348.1,0.005]
[1762500353035,5.5884954,3348.2,3348.1,0.005]
[1762500353241,5.92457401,3348.2,3348.1,0.005]
[1762500353668,5.03542605,3348.2,3348.1,0.005]
[1762500354051,4.56702605,3348.2,3348.1,0.005]
[1762500354249,5.50362605,3348.2,3348.1,0.005]
[1762500354447,5.03542605,3348.2,3348.1,0.005]
[1762500355036,5.50362605,3348.2,3348.1,0.005]
[1762500355265,5.03542605,3348.2,3348.1,0.005]
[1762500355851,5.55362605,3348.2,3348.1,0.005]
[1762500356337,5.03542605,3348.2,3348.1,0.005]
[1762500356543,5.50362605,3348.2,3348.1,0.005]
[1762500356738,6.27713467,3348.2,3348.1,0.005]
[1762500357043,6.38895576,3348.2,3348.1,0.005]
[1762500357269,0.405504,3347.6,3346.1,0.005]
[1762500357581,0.405504,3346.2,3346.1,0.1346]
[1762500357877,0.405504,3346.2,3346.1,0.005]
[1762500358177,5.82978052,3346.2,3346.1,0.005]
[1762500358393,1.665216,3346.2,3346.1,0.005]
[1762500358599,1.665216,3346.2,3346.1,0.5212]
[1762500358768,0.405504,3346.2,3346.1,0.5212]
[1762500359170,0.873904,3346.2,3345.1,0.005]
[1762500359395,0.405504,3346.0,3345.2,0.3866]
[1762500359788,0.405504,3346.1,3345.2,0.3866]
[1762500360099,0.405504,3346.1,3345.2,0.73756536]
[1762500360482,0.405504,3345.8,3345.3,0.3866]
[1762500360671,0.15575614,3346.6,3346.1,0.5162]
[1762500360872,0.405504,3346.4,3345.3,0.3866]
[1762500361191,0.405504,3346.4,3345.1,0.005]
[1762500361192,0.05,3346.2,3345.4,0.3866]
[1762500361394,0.15575614,3346.6,3345.4,0.3866]
[1762500361557,2.98837522,3346.3,3346.2,0.3866]
[1762500361759,2.9886036,3346.1,3345.4,0.3866]
[1762500362001,1.259712,3346.4,3345.4,0.3866]
[1762500362264,0.405504,3346.2,3346.0,0.3866]
[1762500362596,0.405504,3346.1,3346.0,0.3866]
[1762500362765,3.39405783,3346.1,3346.0,0.3866]
[1762500363097,0.405504,3346.1,3346.0,0.3866]
[1762500363691,0.1895,3346.9,3346.0,0.7732]
[1762500363861,0.1895,3346.9,3346.3,0.3866]
[1762500364063,1.259712,3347.0,3346.3,0.3866]
[1762500364259,0.2381,3347.2,3346.3,0.3866]
[1762500364523,0.1895,3347.8,3347.1,0.3866]
[1762500364660,2.99196917,3347.9,3347.1,0.5151]
[1762500364864,2.99196917,3347.9,3346.1,0.1296]
[1762500364865,2.98764785,3347.2,3346.3,0.3866]
[1762500365110,1.259712,3347.3,3346.2,0.3866]
[1762500365275,1.259712,3347.3,3346.2,3.37506218]
[1762500365474,0.005,3347.9,3347.2,0.5151]
[1762500365676,0.005,3347.9,3347.3,0.3866]
[1762500365874,2.98720102,3347.7,3347.3,0.3866]
[1762500366186,2.98703626,3347.8,3347.3,0.3866]
[1762500366373,0.005,3347.9,3347.3,0.3866]
[1762500366700,2.98729131,3347.6,3347.3,0.3866]
[1762500367408,0.405504,3347.6,3347.5,0.3866]
[1762500367902,3.39256811,3347.8,3347.5,0.3866]
[1762500368711,0.405504,3347.8,3347.5,0.3866]
[1762500368921,3.46062525,3347.9,3347.5,0.3866]
[1762500368922,3.39268617,3347.7,3347.5,0.3866]
[1762500369201,3.39271872,3347.6,3347.5,0.3866]
[1762500369371,0.405504,3347.6,3347.5,0.3866]
[1762500369783,0.005,3347.9,3347.5,0.7732]
[1762500369982,0.005,3347.9,3347.8,0.3866]
[1762500370483,0.005,3347.9,3347.8,0.7732]
[1762500370896,0.005,3347.9,3347.8,0.3866]
[1762500371233,3.3928972,3347.4,3347.3,0.001]
[1762500371536,0.405504,3347.4,3347.3,0.001]
[1762500371822,0.005,3347.9,3347.3,0.7742]
[1762500372111,0.410504,3347.9,3347.3,0.7742]
[1762500372314,0.005,3347.9,3347.3,0.7742]
[1762500372475,0.4684,3347.4,3347.3,0.001]
[1762500372682,0.405504,3347.1,3345.5,0.3866]
[1762500372985,0.05,3347.2,3345.5,0.3866]
[1762500372986,0.405504,3346.1,3345.5,0.3866]
[1762500373420,2.98861538,3346.1,3345.5,0.3866]
[1762500373804,0.405504,3346.1,3345.5,0.3866]
[1762500374206,3.39406509,3346.1,3345.5,0.3866]
[1762500374408,0.405504,3346.3,3345.1,0.3916]
[1762500374611,0.405504,3345.8,3345.1,0.3916]
[1762500374808,3.39415949,3346.0,3345.1,0.3916]
[1762500374990,3.39415949,3346.0,3345.7,0.3866]
[1762500375191,0.4691,3346.4,3345.7,0.3866]
[1762500375192,0.405504,3346.3,3345.7,0.3866]
[1762500375392,0.405504,3346.0,3345.7,0.3866]
[1762500375606,1.665216,3346.0,3345.7,0.3866]
[1762500375898,1.665216,3346.0,3345.9,0.3866]
[1762500376099,3.39414715,3346.0,3345.9,0.3866]
[1762500376683,4.2481837,3346.2,3345.5,0.3866]
[1762500376684,0.405504,3345.8,3345.5,0.3866]
[1762500377098,3.39417067,3346.0,3345.7,0.3866]
[1762500377321,0.405504,3346.0,3345.7,0.3866]
[1762500377624,0.405504,3345.9,3345.7,0.3866]
[1762500377986,0.1984,3346.9,3345.8,0.7732]
[1762500378187,2.98838917,3346.3,3345.9,0.3866]
[1762500378420,0.405504,3346.2,3345.9,0.3866]
[1762500378608,0.405504,3346.7,3345.9,0.3866]
[1762500378796,1.665216,3346.5,3346.2,0.5162]
[1762500378997,0.405504,3346.5,3346.2,0.1296]
[1762500379191,3.39372819,3346.5,3346.2,0.1296]
[1762500379392,3.39373252,3346.5,3346.2,0.1296]
[1762500379590,0.405504,3346.3,3346.2,0.1296]
[1762500380008,0.405504,3346.5,3346.2,0.5162]
[1762500380206,1.458112,3346.9,3346.2,0.5162]
[1762500380207,2.9879632,3346.8,3346.2,0.5162]
[1762500380525,1.665216,3346.6,3346.4,0.3866]
[1762500380731,2.98795625,3346.8,3346.4,0.3866]
[1762500380912,2.98775257,3347.0,3346.4,0.3866]
[1762500381110,2.98775022,3347.0,3346.4,0.7732]
[1762500381326,2.98780934,3347.0,3346.4,0.7732]
[1762500381501,6.62388232,3347.5,3346.4,0.7732]
[1762500381831,0.1945,3347.9,3346.5,0.3866]
[1762500381999,0.4691,3347.8,3346.5,0.3866]
[1762500382193,2.98758091,3347.2,3346.5,0.3866]
[1762500382528,2.98754017,3347.3,3346.5,0.3866]
[1762500382828,2.98757582,3347.2,3346.5,0.3866]
[1762500383199,0.405504,3347.1,3346.5,0.3866]
[1762500383619,0.2034,3347.9,3347.0,0.3866]
[1762500383821,2.99201505,3347.9,3347.1,0.3866]
[1762500384010,0.005,3347.9,3347.1,0.3866]
[1762500384211,0.2034,3347.9,3347.2,0.1285]
[1762500384408,0.1488,3347.1,3346.6,0.3866]
[1762500384821,0.2034,3347.9,3347.0,0.3866]
[1762500384822,0.405504,3347.6,3347.0,0.3866]
[1762500385022,0.405504,3347.4,3347.2,0.3866]
[1762500385566,0.405504,3347.6,3347.2,0.3866]
[1762500385737,3.39272514,3347.6,3347.2,0.3866]
[1762500386123,0.405504,3347.6,3347.2,0.3866]
[1762500386522,0.405504,3347.5,3347.2,0.3866]
[1762500387053,0.002,3347.3,3347.2,0.3866]
[1762500388649,0.002,3347.3,3347.2,0.7732]
[1762500388820,0.002,3347.3,3347.2,0.3866]
[1762500389662,0.1508,3347.3,3347.2,4.11106041]
[1762500389867,0.002,3347.3,3347.2,4.11106041]
[1762500390080,0.002,3347.7,3347.5,2.98727304]
[1762500390230,0.002,3347.7,3347.6,0.3866]
[1762500390429,0.002,3347.7,3347.6,0.7732]
[1762500390679,0.002,3347.7,3347.6,4.43521027]
[1762500390844,0.002,3347.7,3347.6,1.44799555]
[1762500391861,0.002,3347.7,3347.6,4.43521027]
[1762500392065,0.002,3347.7,3347.6,1.44799555]
[1762500392270,0.002,3347.7,3347.6,3.76041472]
[1762500392931,0.005,3347.9,3347.8,2.98703626]
[1762500393132,0.002,3348.8,3347.8,0.3866]
[1762500393357,0.002,3348.8,3347.4,5.68601307]
[1762500393358,0.002,3348.8,3348.7,0.5151]
[1762500393834,0.002,3348.8,3348.7,3.88793346]
[1762500394358,0.002,3348.8,3348.7,0.9017]
[1762500394564,0.002,3348.8,3348.7,4.57536021]
[1762500396373,0.002,3348.8,3348.7,0.9017]
[1762500397131,0.002,3348.8,3348.7,0.5151]
[1762500397349,0.002,3348.8,3348.7,3.50133346]
[1762500397550,0.002,3348.8,3348.7,3.88793346]
[1762500397874,0.002,3348.8,3348.7,0.9017]
[1762500398033,0.002,3348.8,3348.7,0.5151]
[1762500398371,0.002,3348.8,3348.7,4.60524368]
[1762500399076,0.002,3348.8,3348.7,4.57538135]
[1762500401680,0.002,3348.8,3348.7,4.60524368]
[1762500401882,0.002,3349.2,3349.1,2.9858768]
[1762500402066,0.002,3349.2,3349.1,3.3724768]
[1762500402257,0.002,3349.2,3349.1,4.73219635]
[1762500406280,0.005,3349.9,3349.8,2.98525285]
[1762500406596,0.005,3349.9,3349.8,3.37185285]
[1762500407293,0.007,3349.9,3349.8,3.37185285]
[1762500407494,0.007,3349.9,3349.8,3.75845285]
[1762500407662,0.007,3349.9,3349.8,3.37185285]
[1762500407860,0.007,3349.9,3349.8,0.3866]
[1762500408086,0.4792,3349.9,3349.1,0.97311955]
[1762500408274,0.007,3349.9,3349.6,2.98537436]
[1762500408596,0.007,3349.9,3349.2,0.3866]
[1762500408800,0.007,3349.9,3349.5,2.98550193]
[1762500409462,0.007,3349.9,3349.6,2.98540817]
[1762500409797,0.007,3349.9,3349.5,2.98549316]
[1762500410264,0.007,3349.9,3349.4,2.9855891]
[1762500410664,0.007,3349.9,3349.5,2.98551321]
[1762500411202,0.6907,3349.9,3349.1,3.78999999]
[1762500411398,0.4722,3349.2,3348.7,0.81594789]
[1762500411697,0.4722,3349.2,3348.7,0.1285]
[1762500412096,0.4722,3349.2,3348.7,3.11472983]
[1762500412396,0.4722,3349.2,3348.7,2.98620567]
[1762500414299,0.1488,3348.7,3348.5,0.1285]
[1762500414497,0.1488,3348.7,3348.5,3.11483175]
[1762500414721,0.1488,3348.7,3348.6,3.37292264]
[1762500417716,0.1488,3348.7,3348.6,3.78938586]
[1762500418015,0.4881,3349.8,3349.1,2.98580612]
[1762500418323,0.4881,3349.8,3349.2,2.98575363]
[1762500419621,0.1488,3349.2,3348.7,4.17659999]
[1762500419810,3.47341478,3349.8,3349.0,2.98590346]
[1762500420117,0.4881,3349.7,3349.1,2.98587196]
[1762500420617,0.4881,3349.7,3349.2,2.9857814]
[1762500420989,0.1488,3349.2,3349.1,2.98584395]
[1762500421189,0.4881,3349.7,3349.3,2.98568011]
[1762500421423,0.1488,3349.3,3349.1,0.3866]
[1762500421595,0.4881,3349.7,3349.1,0.3866]
[1762500421800,0.4881,3349.7,3349.1,3.3724507]
[1762500422414,0.4881,3349.7,3349.2,2.98577667]
[1762500423325,0.1488,3349.2,3348.8,0.3866]
[1762500423524,0.1488,3349.0,3348.9,3.40366689]
[1762500423839,0.1488,3349.0,3348.9,2.98600689]
[1762500424132,0.1488,3349.0,3348.9,3.37260689]
[1762500425096,0.1488,3349.0,3348.9,3.78906744]
[1762500425302,0.2026,3349.9,3349.4,2.98558392]
[1762500425529,0.2026,3349.9,3349.5,2.98550594]
[1762500425959,0.1488,3349.5,3349.4,2.98560936]
[1762500426119,0.4881,3349.8,3349.4,2.98560936]